bitfinex-derivatives/quotes_BTCF0:USTF0_20250812
["timestamp","ask_amount","ask_price","bid_price","bid_amount"]
[1755009684664,0.71200081,119170.0,119160.0,0.3740362]
[1755009684872,0.2013747,119170.0,119160.0,0.3740362]
[1755009685272,0.2013747,119170.0,119160.0,0.88466231]
[1755009685273,0.1300947,119170.0,119160.0,0.88466231]
[1755009685468,0.1300947,119170.0,119160.0,0.89504489]
[1755009685667,0.0839147,119170.0,119160.0,0.89504489]
[1755009686070,0.1548747,119170.0,119160.0,0.89504489]
[1755009686271,0.2013747,119170.0,119160.0,0.89504489]
[1755009686474,0.71200081,119170.0,119160.0,0.30049818]
[1755009686868,0.2013747,119170.0,119160.0,0.30049818]
[1755009687874,0.0839147,119170.0,119160.0,0.81112429]
[1755009689279,0.3356494,119180.0,119170.0,0.0839149]
[1755009689476,0.3356494,119180.0,119170.0,1.49806101]
[1755009689770,0.2517353,119180.0,119170.0,1.49806101]
[1755009690279,0.2860039,119190.0,119170.0,1.74980111]
[1755009690475,0.0839016,119190.0,119180.0,0.66666401]
[1755009690775,0.47263853,119200.0,119190.0,0.0839008]
[1755009691079,0.51881853,119200.0,119190.0,0.2041808]
[1755009691278,1.02944464,119200.0,119190.0,0.2041808]
[1755009692080,0.50471853,119200.0,119190.0,0.2041808]
[1755009692375,0.51854853,119200.0,119190.0,0.2041808]
[1755009692576,0.26685143,119200.0,119190.0,1.49804691]
[1755009692776,0.14966143,119200.0,119190.0,1.49904691]
[1755009693078,0.14966143,119200.0,119190.0,1.50004691]
[1755009693669,0.06576523,119200.0,119190.0,1.50004691]
[1755009693870,0.3674846,119210.0,119190.0,1.66784391]
[1755009694070,0.3908346,119210.0,119200.0,0.0838938]
[1755009694278,0.4528246,119210.0,119200.0,0.2004138]
[1755009695184,0.52019478,119210.0,119200.0,0.2004138]
[1755009696282,1.03082089,119210.0,119200.0,0.2004138]
[1755009697078,0.52019478,119210.0,119200.0,0.2004138]
[1755009697275,0.52019478,119210.0,119200.0,0.2014138]
[1755009697480,1.03082089,119210.0,119200.0,0.2014138]
[1755009697678,1.93394089,119210.0,119200.0,0.001]
[1755009698779,1.93394089,119210.0,119200.0,0.0838938]
[1755009698976,1.93394089,119210.0,119200.0,0.0931238]
[1755009699281,1.93394089,119210.0,119200.0,0.2004138]
[1755009700180,1.42331478,119210.0,119200.0,0.2004138]
[1755009700387,1.93394089,119210.0,119200.0,0.2004138]
[1755009701082,1.93394089,119210.0,119200.0,0.11652]
[1755009701482,0.0838938,119200.0,119190.0,0.237487]
[1755009701678,0.71177991,119200.0,119190.0,0.284317]
[1755009703885,0.2011538,119200.0,119190.0,0.284317]
[1755009705190,0.2011538,119200.0,119190.0,0.285317]
[1755009705587,0.71177991,119200.0,119190.0,0.285317]
[1755009705888,0.71177991,119200.0,119190.0,0.284317]
[1755009706085,0.83177991,119200.0,119190.0,0.01532]
[1755009706389,0.0839078,119180.0,119170.0,0.083912]
[1755009706684,0.71179391,119180.0,119170.0,0.200432]
[1755009706988,0.2011678,119180.0,119170.0,0.200432]
[1755009708184,0.2011678,119180.0,119170.0,0.202432]
[1755009708579,0.71179391,119180.0,119170.0,0.202432]
[1755009709385,0.76179391,119180.0,119170.0,0.087912]
[1755009709684,0.76179391,119180.0,119170.0,0.004]
[1755009710074,0.76179391,119180.0,119170.0,0.002]
[1755009710283,0.76179391,119180.0,119170.0,0.003]
[1755009710788,0.76179391,119180.0,119170.0,0.0869149]
[1755009711390,0.76179391,119180.0,119170.0,0.02568]
[1755009711591,0.76179391,119180.0,119170.0,0.109595]
[1755009711782,0.76179391,119180.0,119170.0,0.085915]
[1755009712183,0.76179391,119180.0,119170.0,0.002]
[1755009712388,0.76179391,119180.0,119170.0,0.085915]
[1755009712784,0.2511678,119180.0,119170.0,0.109595]
[1755009712986,0.76179391,119180.0,119170.0,0.164835]
[1755009713582,0.76179391,119180.0,119170.0,0.132815]
[1755009716395,0.76179391,119180.0,119170.0,0.118825]
[1755009716694,0.76179391,119180.0,119170.0,0.01123]
[1755009716895,0.76179391,119180.0,119170.0,0.002]
[1755009719699,0.76179391,119180.0,119170.0,0.0859149]
[1755009720899,0.76179391,119180.0,119170.0,0.2024349]
[1755009721396,0.76179391,119180.0,119170.0,0.0859149]
[1755009722293,0.2011678,119180.0,119170.0,0.2042549]
[1755009722599,0.71179391,119180.0,119170.0,0.2042549]
[1755009722799,0.82179391,119180.0,119170.0,0.2042549]
[1755009723098,0.71179391,119180.0,119170.0,0.2042549]
[1755009723299,0.71179391,119180.0,119170.0,0.0859149]
[1755009723595,0.71179391,119180.0,119170.0,0.1108449]
[1755009723802,0.2011678,119180.0,119170.0,0.2046349]
[1755009724106,0.1780578,119180.0,119170.0,0.71526101]
[1755009724302,0.2011178,119180.0,119170.0,0.71526101]
[1755009724490,0.3211178,119180.0,119170.0,0.71526101]
[1755009724692,0.2011178,119180.0,119170.0,0.2046349]
[1755009725496,0.03881,119180.0,119170.0,0.71526101]
[1755009725691,0.05534,119190.0,119170.0,0.88308011]
[1755009725892,0.2516735,119200.0,119170.0,0.88308011]
[1755009725893,0.3355673,119200.0,119190.0,0.0838948]
[1755009726100,0.4521773,119200.0,119190.0,0.71324091]
[1755009726289,0.4521773,119200.0,119190.0,0.2026148]
[1755009727800,0.3682835,119200.0,119190.0,0.2026148]
[1755009728697,0.3702835,119200.0,119190.0,0.2026148]
[1755009729304,0.3702835,119200.0,119190.0,0.2036148]
[1755009729498,0.3682835,119200.0,119190.0,0.2046148]
[1755009731008,0.87890961,119200.0,119190.0,0.2046148]
[1755009732004,0.98890961,119200.0,119190.0,0.2046148]
[1755009732307,0.87890961,119200.0,119190.0,0.2046148]
[1755009732507,0.98890961,119200.0,119190.0,0.2046148]
[1755009732708,0.87890961,119200.0,119190.0,0.2046148]
[1755009733505,0.98890961,119200.0,119190.0,0.2046148]
[1755009733806,0.87890961,119200.0,119190.0,0.2046148]
[1755009734006,0.99890961,119200.0,119190.0,0.2046148]
[1755009734206,0.87890961,119200.0,119190.0,0.2046148]
[1755009740503,0.03821,119200.0,119190.0,0.71524091]
[1755009740709,0.1774391,119200.0,119190.0,0.71524091]
[1755009741014,0.1774391,119200.0,119190.0,1.49728091]
[1755009742113,0.1549191,119200.0,119190.0,1.49728091]
[1755009742314,0.31902828,119210.0,119200.0,0.0838892]
[1755009742612,0.43563828,119210.0,119200.0,0.71323531]
[1755009742807,0.31548938,119210.0,119200.0,0.71323531]
[1755009743213,0.35174938,119210.0,119200.0,0.71323531]
[1755009743806,0.35174938,119210.0,119200.0,0.2026092]
[1755009745411,0.35174938,119210.0,119200.0,0.2046092]
[1755009745812,1.76421549,119210.0,119200.0,0.0858892]
[1755009746014,1.75421549,119210.0,119200.0,0.0878892]
[1755009746212,1.64421549,119210.0,119200.0,0.0878892]
[1755009746411,1.76421549,119210.0,119200.0,0.0878892]
[1755009747124,1.76421549,119210.0,119200.0,0.004]
[1755009748412,0.2517015,119190.0,119170.0,0.40793]
[1755009748622,0.71113931,119180.0,119170.0,0.19275]
[1755009748811,0.0839102,119170.0,119160.0,0.33249934]
[1755009749012,0.71114631,119170.0,119160.0,0.26020934]
[1755009749310,0.71114631,119170.0,119160.0,0.28458934]
[1755009749619,0.2005202,119170.0,119160.0,0.37892934]
[1755009750013,0.2005202,119170.0,119160.0,0.38692934]
[1755009750415,0.001,119170.0,119160.0,0.90355545]
[1755009751223,0.1177302,119170.0,119160.0,0.90355545]
[1755009751422,0.1784602,119170.0,119160.0,0.90355545]
[1755009751908,0.1559402,119170.0,119160.0,0.90355545]
[1755009753221,0.1559402,119170.0,119160.0,0.39292934]
[1755009753428,0.1559402,119170.0,119160.0,0.90355545]
[1755009753429,0.1652602,119170.0,119160.0,0.90355545]
[1755009753619,0.2038602,119170.0,119160.0,0.90355545]
[1755009754125,0.1652602,119170.0,119160.0,0.90355545]
[1755009756023,0.1652602,119170.0,119160.0,0.39292934]
[1755009756214,0.07203,119170.0,119160.0,0.90355545]
[1755009756519,0.0849102,119170.0,119160.0,0.90355545]
[1755009757318,0.001,119170.0,119160.0,0.90355545]
[1755009758121,0.0849102,119170.0,119160.0,0.90355545]
[1755009758623,0.1170302,119170.0,119160.0,0.90355545]
[1755009758815,0.1403202,119170.0,119160.0,0.90355545]
[1755009759215,0.05641,119170.0,119160.0,0.90355545]
[1755009759521,0.001,119170.0,119160.0,0.90355545]
[1755009761213,0.0849102,119170.0,119160.0,0.90355545]
[1755009761421,0.71479631,119170.0,119160.0,0.39292934]
[1755009761615,0.83479631,119170.0,119160.0,0.39292934]
[1755009761925,0.83479631,119170.0,119160.0,0.30901374]
[1755009762117,0.83479631,119170.0,119160.0,0.23960374]
[1755009762517,0.83479631,119170.0,119160.0,0.014]
[1755009763118,0.0839173,119160.0,119150.0,0.251772]
[1755009763322,0.83380341,119160.0,119150.0,0.332702]
[1755009763525,0.83380341,119160.0,119150.0,0.35691578]
[1755009764226,0.83380341,119160.0,119150.0,0.35891578]
[1755009764427,0.83380341,119160.0,119150.0,0.253772]
[1755009764624,0.83380341,119160.0,119150.0,0.169848]
[1755009764822,1.61524341,119160.0,119150.0,0.002]
[1755009765130,1.61524341,119160.0,119150.0,0.0859243]
[1755009765532,1.61524341,119160.0,119150.0,0.002]
[1755009765830,1.61524341,119160.0,119150.0,0.005]
[1755009766033,2.12586952,119160.0,119150.0,0.005]
[1755009766233,0.0839314,119140.0,119130.0,0.0840157]
[1755009766429,2.32381751,119140.0,119130.0,0.0840157]
[1755009766921,2.32381751,119140.0,119130.0,0.1079857]
[1755009767121,1.8231914,119140.0,119130.0,0.1809457]
[1755009767322,1.7031914,119140.0,119130.0,0.2041557]
[1755009768121,1.8241914,119140.0,119130.0,0.2081557]
[1755009768317,1.8241914,119140.0,119130.0,0.21669119]
[1755009768719,2.40242866,119140.0,119130.0,0.0920157]
[1755009768940,3.18378866,119140.0,119130.0,0.0920157]
[1755009769525,3.18378866,119140.0,119130.0,0.00808]
[1755009769726,3.18378866,119140.0,119130.0,0.0920184]
[1755009770236,3.18378866,119140.0,119130.0,0.00808]
[1755009770533,3.19128392,119140.0,119130.0,0.00408]
[1755009770734,3.19228392,119140.0,119130.0,0.00608]
[1755009771432,1.69228392,119140.0,119130.0,0.00608]
[1755009772035,1.69228392,119140.0,119130.0,0.0890184]
[1755009772036,1.68378866,119140.0,119130.0,0.0890184]
[1755009772228,1.17312255,119140.0,119130.0,0.1380484]
[1755009772532,1.68374866,119140.0,119130.0,0.00508]
[1755009775231,1.68374866,119140.0,119130.0,0.0890184]
[1755009775729,1.17312255,119140.0,119130.0,0.0890184]
[1755009775921,1.68378866,119140.0,119130.0,0.1699484]
[1755009776234,1.68378866,119140.0,119130.0,0.1519884]
[1755009776427,1.68378866,119140.0,119130.0,0.1220484]
[1755009776620,1.17316255,119140.0,119130.0,0.1220484]
[1755009776826,1.68378866,119140.0,119130.0,0.1220484]
[1755009778833,1.68378866,119140.0,119130.0,0.03811]
[1755009779030,1.68378866,119140.0,119130.0,0.1220484]
[1755009779727,1.68378866,119140.0,119130.0,0.02905]
[1755009779927,1.68378866,119140.0,119130.0,0.00508]
[1755009781331,1.68378866,119140.0,119130.0,0.0890184]
[1755009781531,1.68378866,119140.0,119130.0,0.00508]
[1755009781732,1.68378866,119140.0,119130.0,0.0890184]
[1755009781931,1.68378866,119140.0,119130.0,0.00508]
[1755009782132,1.68378866,119140.0,119130.0,0.0890184]
[1755009782624,1.68378866,119140.0,119130.0,0.1223884]
[1755009785232,1.70819901,119140.0,119130.0,0.1223884]
[1755009786536,1.70819901,119140.0,119130.0,0.03845]
[1755009786732,1.70819901,119140.0,119130.0,0.02939]
[1755009787037,1.70819901,119140.0,119130.0,0.00508]
[1755009789635,1.70819901,119140.0,119130.0,0.0890184]
[1755009790041,1.70819901,119140.0,119130.0,0.1133284]
[1755009790734,1.70819901,119140.0,119130.0,0.1618784]
[1755009790936,1.1975729,119140.0,119130.0,0.2080084]
[1755009791144,1.70819901,119140.0,119130.0,0.2080084]
[1755009791441,0.3454929,119140.0,119130.0,0.71863451]
[1755009791642,1.16278255,119140.0,119130.0,0.71863451]
[1755009792137,0.15006115,119140.0,119130.0,0.71863451]
[1755009792334,0.09190115,119140.0,119130.0,0.71863451]
[1755009792539,0.06861115,119140.0,119130.0,0.71863451]
[1755009792935,0.001,119140.0,119130.0,0.71863451]
[1755009793143,0.001,119140.0,119130.0,0.88651451]
[1755009793344,0.001,119140.0,119130.0,1.66751451]
[1755009796441,0.001,119140.0,119130.0,1.71751451]
[1755009796641,0.3824171,119170.0,119160.0,0.0839173]
[1755009796949,0.96507321,119170.0,119160.0,0.2029073]
[1755009797145,1.03346612,119170.0,119160.0,0.2029073]
[1755009797651,0.64284001,119170.0,119160.0,0.2029073]
[1755009797843,1.17786925,119170.0,119160.0,0.2029073]
[1755009798044,1.15346612,119170.0,119160.0,0.2029073]
[1755009798247,1.17779482,119170.0,119160.0,0.2029073]
[1755009798642,1.17879482,119170.0,119160.0,0.2029073]
[1755009799552,1.17879482,119170.0,119160.0,0.2039073]
[1755009800145,1.17879482,119170.0,119160.0,0.0849173]
[1755009800452,1.17878964,119170.0,119160.0,0.0849173]
[1755009801053,1.17878964,119170.0,119160.0,0.1092273]
[1755009801856,1.17878964,119170.0,119160.0,0.11742532]
[1755009802557,1.17878964,119170.0,119160.0,0.14301532]
[1755009802758,1.17878964,119170.0,119160.0,0.18914532]
[1755009803649,1.17878964,119170.0,119160.0,0.001]
[1755009804855,1.17878964,119170.0,119160.0,0.0849173]
[1755009805555,1.17878964,119170.0,119160.0,0.001]
[1755009806748,1.17878964,119170.0,119160.0,0.0849173]
[1755009807355,1.15446612,119170.0,119160.0,0.0849173]
[1755009807557,1.93498612,119170.0,119160.0,0.0849173]
[1755009807756,1.93498612,119170.0,119160.0,0.2039073]
[1755009808150,1.93498612,119170.0,119160.0,0.1348173]
[1755009808550,1.93498612,119170.0,119160.0,0.0849173]
[1755009808851,1.93498612,119170.0,119160.0,0.1092273]
[1755009809555,1.93498612,119170.0,119160.0,0.0849173]
[1755009809756,0.64384001,119170.0,119160.0,0.1577773]
[1755009809957,0.55992361,119170.0,119160.0,0.2039073]
[1755009810453,0.16432291,119170.0,119160.0,0.71453341]
[1755009810756,0.24823321,119170.0,119160.0,0.71453341]
[1755009811144,0.16432291,119170.0,119160.0,0.71453341]
[1755009811351,0.06939291,119170.0,119160.0,0.71453341]
[1755009811956,0.15330311,119170.0,119160.0,0.71453341]
[1755009812351,0.20863311,119170.0,119160.0,0.71453341]
[1755009812551,0.20863311,119170.0,119160.0,0.2039073]
[1755009812757,0.24827311,119170.0,119160.0,0.71453341]
[1755009813647,0.001,119170.0,119160.0,0.71453341]
[1755009814456,0.0656835,119190.0,119180.0,0.3356083]
[1755009814657,0.2516794,119200.0,119190.0,0.0838962]
[1755009814858,0.2848894,119200.0,119190.0,0.71385231]
[1755009815058,0.37440534,119200.0,119190.0,0.71385231]
[1755009815362,0.2009833,119210.0,119190.0,0.88164011]
[1755009815563,0.4093423,119210.0,119200.0,0.66641531]
[1755009815765,0.4093423,119210.0,119200.0,0.71384531]
[1755009815766,0.4812023,119210.0,119200.0,0.71384531]
[1755009816264,0.4812023,119210.0,119200.0,0.2032192]
[1755009817160,0.4852023,119210.0,119200.0,0.2032192]
[1755009818658,0.4872023,119210.0,119200.0,0.2032192]
[1755009818859,0.55284739,119210.0,119200.0,0.2032192]
[1755009820564,1.1473625,119210.0,119190.0,0.3590602]
[1755009820759,0.59451531,119200.0,119190.0,0.3590602]
[1755009820961,0.71405531,119200.0,119190.0,0.3849402]
[1755009821161,1.49409531,119200.0,119190.0,0.275164]
[1755009821363,0.71405531,119200.0,119190.0,0.335854]
[1755009821671,1.49409531,119200.0,119190.0,0.371014]
[1755009822164,1.49401531,119200.0,119190.0,0.372014]
[1755009822360,0.9843892,119200.0,119190.0,0.372014]
[1755009824169,0.2044292,119200.0,119190.0,0.372014]
[1755009825065,1.60493531,119200.0,119190.0,0.285774]
[1755009825365,1.60493531,119200.0,119190.0,0.0848962]
[1755009825664,1.60493531,119200.0,119190.0,0.001]
[1755009825868,2.11556142,119200.0,119190.0,0.001]
[1755009826070,0.0839033,119180.0,119170.0,0.2517259]
[1755009826264,1.61390941,119180.0,119170.0,0.2517259]
[1755009826764,1.61390941,119180.0,119170.0,0.2752059]
[1755009827170,1.61490941,119180.0,119170.0,0.2782059]
[1755009827563,1.1042833,119180.0,119170.0,0.2802059]
[1755009827764,1.1042833,119180.0,119170.0,0.3545059]
[1755009828063,1.61490941,119180.0,119170.0,0.2567259]
[1755009828372,1.61490941,119180.0,119170.0,0.1728166]
[1755009828568,1.61490941,119180.0,119170.0,0.005]
[1755009828966,1.61490941,119180.0,119170.0,0.0889103]
[1755009829573,1.61490941,119180.0,119170.0,0.005]
[1755009830575,1.1042833,119180.0,119170.0,0.005]
[1755009830775,1.61490941,119180.0,119170.0,0.005]
[1755009831675,1.61490941,119180.0,119170.0,0.0889103]
[1755009832173,1.61490941,119180.0,119170.0,0.005]
[1755009833277,1.61490941,119180.0,119170.0,0.0889103]
[1755009833677,1.61490941,119180.0,119170.0,0.005]
[1755009839682,1.61490941,119180.0,119170.0,0.0889103]
[1755009840182,1.61490941,119180.0,119170.0,0.005]
[1755009840884,1.61490941,119180.0,119170.0,0.0889103]
[1755009841181,1.61490941,119180.0,119170.0,0.005]
[1755009841482,1.61490941,119180.0,119170.0,0.0889103]
[1755009842374,1.61490941,119180.0,119170.0,0.1147803]
[1755009842682,1.61490941,119180.0,119170.0,0.1875403]
[1755009843582,1.61490941,119180.0,119170.0,0.1395503]
[1755009843771,1.61490941,119180.0,119170.0,0.005]
[1755009844580,1.1042833,119180.0,119170.0,0.0889103]
[1755009844881,1.61490941,119180.0,119170.0,0.2090403]
[1755009845787,1.1042833,119180.0,119170.0,0.2090403]
[1755009845987,1.1042833,119180.0,119170.0,0.1610503]
[1755009846186,1.61490941,119180.0,119170.0,0.2090403]
[1755009848081,0.83506941,119180.0,119170.0,0.1610503]
[1755009848289,0.2044433,119180.0,119170.0,0.71966641]
[1755009848883,0.2044433,119180.0,119170.0,0.2090403]
[1755009849078,0.3144433,119180.0,119170.0,0.2090403]
[1755009851590,1.0938433,119180.0,119170.0,0.2090403]
[1755009851783,0.3144433,119180.0,119170.0,0.2090403]
[1755009852385,0.82506941,119180.0,119170.0,0.2090403]
[1755009853291,0.3144433,119180.0,119170.0,0.2090403]
[1755009853688,0.82506941,119180.0,119170.0,0.2090403]
[1755009856583,0.82506941,119180.0,119170.0,0.005]
[1755009857590,0.82506941,119180.0,119150.0,0.36889482]
[1755009857591,0.59454341,119160.0,119150.0,0.36889482]
[1755009857789,0.82150341,119160.0,119150.0,0.39470482]
[1755009857986,0.3108773,119160.0,119150.0,0.46425482]
[1755009858183,0.82150341,119160.0,119150.0,0.46425482]
[1755009858384,0.82150341,119160.0,119150.0,0.39470482]
[1755009859199,0.82150341,119160.0,119150.0,0.31178142]
[1755009859393,0.82150341,119160.0,119150.0,0.26120142]
[1755009859993,0.82250341,119160.0,119150.0,0.17727802]
[1755009860193,0.82250341,119160.0,119150.0,0.20204802]
[1755009860690,0.82250341,119160.0,119150.0,0.001]
[1755009861596,0.0839314,119140.0,119130.0,0.1679528]
[1755009861788,0.83151751,119140.0,119130.0,0.0840154]
[1755009862400,0.83151751,119140.0,119130.0,8e-05]
[1755009863195,0.83151751,119140.0,119130.0,0.00108]
[1755009863987,0.83251751,119140.0,119130.0,0.00108]
[1755009864189,0.83251751,119140.0,119130.0,0.0945685]
[1755009864390,0.39018057,119140.0,119130.0,0.2051485]
[1755009864586,0.89980668,119140.0,119130.0,0.2051485]
[1755009864896,0.27118057,119140.0,119130.0,0.21349305]
[1755009865295,0.27118057,119140.0,119130.0,0.21249305]
[1755009865489,0.23226057,119140.0,119130.0,0.72311916]
[1755009865688,0.33070057,119140.0,119130.0,0.72311916]
[1755009865992,0.23226057,119140.0,119130.0,0.72311916]
[1755009866294,0.24697057,119140.0,119130.0,0.72311916]
[1755009866496,0.27118057,119140.0,119130.0,0.72311916]
[1755009867196,0.27118057,119140.0,119130.0,0.21249305]
[1755009868491,0.38118057,119140.0,119130.0,0.21249305]
[1755009868692,1.67080668,119140.0,119130.0,0.09236305]
[1755009868897,1.67080668,119140.0,119130.0,0.0840185]
[1755009869197,1.67080668,119140.0,119130.0,0.0840184]
[1755009870399,1.67080668,119140.0,119130.0,0.09242665]
[1755009870700,1.67080668,119140.0,119130.0,0.0840184]
[1755009871798,1.67080668,119140.0,119130.0,0.1087884]
[1755009872092,1.16018057,119140.0,119130.0,0.0840184]
[1755009872298,0.38118057,119140.0,119130.0,0.2041484]
[1755009872700,0.89180668,119140.0,119130.0,0.2041484]
[1755009872898,0.89180668,119140.0,119130.0,0.21234867]
[1755009874097,0.25832917,119140.0,119130.0,0.72297478]
[1755009874292,0.09210917,119140.0,119130.0,0.72297478]
[1755009874498,0.23371917,119140.0,119130.0,0.72297478]
[1755009874698,0.12371917,119140.0,119130.0,0.72297478]
[1755009875898,0.20765057,119140.0,119130.0,0.72297478]
[1755009876904,0.23854057,119140.0,119130.0,0.72297478]
[1755009878402,0.27187057,119140.0,119130.0,0.72297478]
[1755009878703,0.27187057,119140.0,119130.0,0.21234867]
[1755009879189,0.40187057,119140.0,119130.0,0.18943867]
[1755009879599,0.37836057,119140.0,119130.0,0.21102867]
[1755009879799,0.40187057,119140.0,119130.0,0.21102867]
[1755009880000,0.40187057,119140.0,119130.0,0.72165478]
[1755009880802,0.40187057,119140.0,119130.0,0.21102867]
[1755009881805,0.40187057,119140.0,119130.0,0.72165478]
[1755009882402,0.40187057,119140.0,119130.0,0.21102867]
[1755009882799,0.40187057,119140.0,119130.0,0.72165478]
[1755009884406,0.30604057,119140.0,119130.0,0.72165478]
[1755009884601,0.33765057,119140.0,119130.0,0.72165478]
[1755009884803,0.37836057,119140.0,119130.0,0.72165478]
[1755009884996,0.40187057,119140.0,119130.0,0.72165478]
[1755009886909,0.3335814,119140.0,119130.0,0.72165478]
[1755009887800,0.3100714,119140.0,119130.0,0.72165478]
[1755009888105,0.002,119140.0,119130.0,0.88953478]
[1755009889220,0.3212323,119170.0,119160.0,0.0839173]
[1755009889416,0.4792423,119170.0,119160.0,0.64183341]
[1755009889614,0.4792423,119170.0,119160.0,0.71335341]
[1755009890112,0.2735314,119170.0,119160.0,0.71335341]
[1755009890406,0.1848,119170.0,119160.0,0.71335341]
[1755009891110,0.005,119170.0,119160.0,0.71335341]
[1755009892105,0.008,119170.0,119160.0,0.71435341]
[1755009892907,0.006,119170.0,119160.0,0.71535341]
[1755009893205,0.001,119170.0,119160.0,0.71535341]
[1755009893413,0.0849103,119170.0,119160.0,0.71535341]
[1755009893613,0.001,119170.0,119160.0,0.71535341]
[1755009896519,0.001,119170.0,119160.0,1.39381152]
[1755009897204,0.001,119170.0,119160.0,0.88318541]
[1755009897614,0.001,119170.0,119160.0,0.71535341]
[1755009899513,0.1547103,119170.0,119160.0,0.2047273]
[1755009899714,0.3024103,119170.0,119160.0,1.49347341]
[1755009899919,0.2024103,119170.0,119160.0,1.49347341]
[1755009900219,0.2924103,119170.0,119160.0,1.49347341]
[1755009900420,0.2229203,119170.0,119160.0,0.9828473]
[1755009900617,0.80303641,119170.0,119160.0,0.9828073]
[1755009900922,0.2924103,119170.0,119160.0,0.2047273]
[1755009901122,0.80303641,119170.0,119160.0,0.0859173]
[1755009901317,0.80303641,119170.0,119160.0,0.002]
[1755009906118,1.48149452,119170.0,119160.0,0.002]
[1755009906318,0.97086841,119170.0,119160.0,0.002]
[1755009910727,0.80303641,119170.0,119160.0,0.002]
[1755009911833,0.2924103,119170.0,119160.0,0.002]
[1755009912035,0.80303641,119170.0,119160.0,0.002]
[1755009914735,0.97086841,119170.0,119160.0,0.002]
[1755009917539,0.0839244,119150.0,119140.0,0.0839297]
[1755009917740,0.0839314,119140.0,119130.0,0.33179139]
[1755009917947,0.83424751,119140.0,119130.0,0.38040139]
[1755009918235,0.3236214,119140.0,119130.0,0.38040139]
[1755009918434,0.3010514,119140.0,119130.0,0.38040139]
[1755009918939,0.3236214,119140.0,119130.0,0.38040139]
[1755009919737,0.3236214,119140.0,119130.0,0.38440139]
[1755009921240,0.3246214,119140.0,119130.0,0.38540139]
[1755009922447,0.3246214,119140.0,119130.0,0.26509139]
[1755009922645,0.83524751,119140.0,119130.0,0.12539]
[1755009922852,0.83524751,119140.0,119130.0,0.07748]
[1755009923143,0.83524751,119140.0,119130.0,0.1385685]
[1755009923742,1.00312751,119140.0,119130.0,0.00508]
[1755009923943,0.83524751,119140.0,119130.0,0.00508]
[1755009924142,0.83524751,119140.0,119130.0,0.02887]
[1755009924342,0.83424751,119140.0,119130.0,0.1118085]
[1755009924647,0.83524751,119140.0,119130.0,0.2093285]
[1755009924846,0.83524751,119140.0,119130.0,0.12539]
[1755009925044,0.83524751,119140.0,119130.0,0.2093285]
[1755009925247,0.83424751,119140.0,119130.0,0.12439]
[1755009925445,0.83624751,119140.0,119130.0,0.12539]
[1755009925950,0.83624751,119140.0,119130.0,0.05063]
[1755009926650,0.83924751,119140.0,119130.0,0.05063]
[1755009926844,0.83924751,119140.0,119130.0,0.02487]
[1755009927245,0.83924751,119140.0,119130.0,0.00108]
[1755009927449,0.90518013,119140.0,119130.0,0.00108]
[1755009928250,0.39455402,119140.0,119130.0,0.00108]
[1755009928450,0.90518013,119140.0,119130.0,0.02487]
[1755009929052,0.90518013,119140.0,119130.0,0.05063]
[1755009929252,0.90518013,119140.0,119130.0,0.09854]
[1755009929952,0.90518013,119140.0,119130.0,0.05063]
[1755009930156,0.0839455,119120.0,119110.0,0.11600508]
[1755009930355,1.53992161,119120.0,119110.0,0.0724]
[1755009930654,1.61178161,119120.0,119110.0,0.00988]
[1755009930854,0.0839526,119110.0,119100.0,0.2396163]
[1755009931051,0.83426871,119110.0,119100.0,0.2042668]
[1755009931250,0.0839596,119100.0,119090.0,0.08029121]
[1755009931555,1.1111696,119100.0,119090.0,0.21286791]
[1755009932854,1.1111696,119100.0,119090.0,0.21586791]
[1755009933655,1.1111696,119100.0,119090.0,0.72649402]
[1755009934250,1.1121696,119100.0,119090.0,0.72749402]
[1755009934758,1.1121696,119100.0,119090.0,0.21686791]
[1755009935454,0.2427896,119100.0,119090.0,0.21686791]
[1755009935647,0.1949596,119100.0,119090.0,0.21686791]
[1755009935849,0.2517196,119100.0,119090.0,0.21686791]
[1755009936045,0.2773396,119100.0,119090.0,0.21686791]
[1755009936358,0.1949596,119100.0,119090.0,0.72749402]
[1755009936768,0.001,119100.0,119090.0,0.72749402]
[1755009937458,0.0849596,119100.0,119090.0,0.72749402]
[1755009937762,0.001,119100.0,119090.0,0.72749402]
[1755009938351,0.001,119100.0,119090.0,0.7275409]
[1755009938650,0.001,119100.0,119090.0,1.7229169]
[1755009939752,0.2863613,119120.0,119110.0,0.0839526]
[1755009939953,0.4063613,119120.0,119110.0,0.71098871]
[1755009940155,0.2039463,119120.0,119110.0,0.71098871]
[1755009940346,0.0839463,119120.0,119110.0,0.71098871]
[1755009940551,0.2039463,119120.0,119110.0,0.71098871]
[1755009940746,0.0839463,119120.0,119110.0,0.71098871]
[1755009940959,0.0849463,119120.0,119110.0,0.71198871]
[1755009941357,0.2049463,119120.0,119110.0,0.71198871]
[1755009941556,0.3019863,119120.0,119110.0,0.2013626]
[1755009941765,0.3261963,119120.0,119110.0,0.2013626]
[1755009942759,0.3261963,119120.0,119110.0,0.71198871]
[1755009942953,0.3261963,119120.0,119110.0,0.2013626]
[1755009945956,0.83682241,119120.0,119110.0,0.2013626]
[1755009946759,0.3261963,119120.0,119110.0,0.2013626]
[1755009950164,1.61406241,119120.0,119110.0,0.001]
[1755009950363,2.12468852,119120.0,119110.0,0.001]
[1755009950764,1.61406241,119120.0,119110.0,0.001]
[1755009952471,2.12468852,119120.0,119110.0,0.001]
[1755009952670,1.61406241,119120.0,119110.0,0.001]
[1755009953472,0.0839596,119100.0,119090.0,0.20035089]
[1755009953661,1.57878571,119100.0,119090.0,0.20035089]
[1755009953857,1.60299571,119100.0,119090.0,0.19175968]
[1755009954264,1.60299571,119100.0,119090.0,0.19997994]
[1755009954668,1.60299571,119100.0,119090.0,0.20297994]
[1755009956073,1.60299571,119100.0,119090.0,0.11901354]
[1755009956463,1.60399571,119100.0,119090.0,0.08801328]
[1755009957166,1.60399571,119100.0,119090.0,0.00404688]
[1755009958062,1.60499571,119100.0,119090.0,0.00304688]
[1755009958365,1.60599571,119100.0,119090.0,4.688e-05]
[1755009958961,0.59459981,119080.0,119070.0,0.0839802]
[1755009959160,0.0839807,119070.0,119060.0,0.2988389]
[1755009959364,0.3110207,119070.0,119060.0,0.3445889]
[1755009959564,1.09781891,119070.0,119050.0,0.1679876]
[1755009959764,1.44507381,119060.0,119050.0,0.2386476]
[1755009959961,0.2873677,119060.0,119050.0,0.2843976]
[1755009960163,0.1663677,119060.0,119050.0,0.29296153]
[1755009960373,0.2321978,119060.0,119050.0,0.29296153]
[1755009960562,0.1939878,119060.0,119050.0,0.80358764]
[1755009961165,0.82586391,119060.0,119050.0,0.29696153]
[1755009961764,0.3152378,119060.0,119050.0,0.29696153]
[1755009961962,0.3162378,119060.0,119050.0,0.29796153]
[1755009962162,0.04887,119060.0,119050.0,0.29796153]
[1755009962369,0.04887,119060.0,119050.0,0.80858764]